Cogmind - Beta 13 @@@ ROGUE MODE // 2024.05.06 @ 16:17:59 Player: GayPredator Result: Destroyed by G-47 Trooper with Particle Gun Performance ------------- Evolutions (3) 1500 Regions Visited (11) 2200 Robots Destroyed (100) 500 Value Destroyed (4041) 4041 Prototype IDs (1) 20 Alien Tech Used (0) 0 Bonus (1017) 1017 TOTAL SCORE: 9278 Bonus ------- High Alert Combat Kills 266 Follower Combat Kills 51 Entered Garrisons 200 Used RIF Installer 500 Cogmind --------- Core Integrity 0/700 Matter 300/300 Energy 100/100 System Corruption 13% Temperature Cool (9) Movement Core (50) Location -7/Storage Parts ------- > --- POWER (2) -------- (None) > --- PROPULSION (3) --- (None) > --- UTILITY (5) ------ (None) > --- WEAPON (3) ------- (None) > --- INVENTORY (5) ---- Improved Heat Sink Trap Scanner ECM Suite Hacking Suite Drone Bay (2/2) Peak State ------------ > --- POWER ------------ Deuterium Engine Nuclear Core > --- PROPULSION ------- Improved Titanium Leg Improved Titanium Leg Improved Titanium Leg > --- UTILITY ---------- Improved Cooling System Large Storage Unit Hardened Medium Armor Plating Hacking Suite System Shield > --- WEAPON ----------- Heavy Laser Heavy Laser Improved Grenade Launcher > --- INVENTORY -------- Nuclear Core Improved Titanium Leg Structural Scanner Trap Scanner Improved Signal Interpreter ECM Suite Hardened Medium Armor Plating Hacking Suite Relay Coupler [NC] Relay Coupler [Grunt] Makeshift System Restoration Module Advanced Assault Cannon Advanced Assault Cannon Heavy Flail [Rating: 47] Favorites ----------- Power Nuclear Core Engine Improved Ion Engine Power Core Nuclear Core Propulsion Improved Titanium Leg Treads Light Treads Leg Improved Titanium Leg Utility Large Storage Unit Device Improved Cooling System Storage Large Storage Unit Hackware Hacking Suite Protection Improved Light Armor Plating Weapon Heavy Laser Energy Gun Heavy Laser Ballistic Gun Heavy Assault Rifle Ballistic Cannon Flak Cannon Launcher Improved Grenade Launcher Impact Weapon Heavy Flail Special Melee Weapon Datajack Build | -11 -10 -10 -9 -9 -9 -8 -8 -8 -8 -7 -7 ------- Run | Yrd Mat Min Mat Min Exi Min Mat Gar Mat Fac Sto Slots Evolved 6 | . . . 2 . . . 2 . . 2 . Power 1 | . . . . . . . 1 . . . . Propulsion 1 | . . . . . . . 1 . . . . Utility 3 | . . . 1 . . . . . . 2 . Weapon 1 | . . . 1 . . . . . . . . Parts Attached 116 | 7 1 5 12 3 2 . 25 14 20 22 5 Power 15 | 1 . . 1 . . . 6 1 3 2 1 Engine 6 | 1 . . 1 . . . 1 . 1 1 1 Core 9 | . . . . . . . 5 1 2 1 . Reactor . | . . . . . . . . . . . . Propulsion 24 | 2 . 1 2 1 . . 5 4 4 4 1 Treads 11 | 2 . 1 2 1 . . 5 . . . . Leg 13 | . . . . . . . . 4 4 4 1 Wheel . | . . . . . . . . . . . . Hover . | . . . . . . . . . . . . Flight . | . . . . . . . . . . . . Utility 38 | 2 1 2 4 2 . . 6 2 8 9 2 Device 17 | 1 . 1 2 1 . . 2 1 3 5 1 Storage 2 | 1 1 . . . . . . . . . . Processor . | . . . . . . . . . . . . Hackware 4 | . . . 1 . . . . . . 2 1 Protection 15 | . . 1 1 1 . . 4 1 5 2 . Artifact . | . . . . . . . . . . . . Weapon 39 | 2 . 2 5 . 2 . 8 7 5 7 1 Energy Gun 12 | . . 2 1 . 1 . . 4 3 . 1 Energy Cannon . | . . . . . . . . . . . . Ballistic Gun 5 | 2 . . 2 . . . 1 . . . . Ballistic Cannon 13 | . . . . . . . 5 2 . 6 . Launcher 3 | . . . . . . . 1 1 1 . . Special Weapon . | . . . . . . . . . . . . Impact Weapon 5 | . . . 2 . . . 1 . 1 1 . Slashing Weapon . | . . . . . . . . . . . . Piercing Weapon . | . . . . . . . . . . . . Special Melee Weapon 1 | . . . . . 1 . . . . . . Unidentified Prototypes 1 | . . . . . . . . . . . 1 Parts Lost 26 | . . . . . . . . 3 1 13 9 Power 3 | . . . . . . . . . . 3 . Propulsion 8 | . . . . . . . . 2 1 2 3 Utility 11 | . . . . . . . . 1 . 4 6 Weapon 4 | . . . . . . . . . . 4 . Highest Loss Streak 9 | . . . . . . . . 3 1 4 9 To Critical Strikes . | . . . . . . . . . . . . Average Slot Usage (%) 97 | . 100 100 99 100 100 100 96 96 99 93 67 Engine 7 | . 14 14 11 11 11 11 5 . 2 4 9 Core 6 | . . . . . . . 12 18 15 5 . Treads 14 | . 28 28 22 22 22 22 23 11 . . . Leg 9 | . . . . . . . . 14 26 22 15 Device 6 | . 14 7 11 . . . 1 5 11 8 4 Storage 9 | . 14 14 11 11 11 11 9 9 9 7 5 Hackware 6 | . . . 8 11 11 11 8 . . 15 15 Protection 6 | . . 6 2 11 11 11 7 10 6 4 . Energy Gun 10 | . . 17 18 . . 11 2 9 25 7 4 Ballistic Gun 9 | . 28 10 4 22 22 22 10 . . . . Ballistic Cannon 4 | . . . . . . . 11 15 . 9 5 Impact Weapon 2 | . . . 9 11 5 . 1 . . . 5 Naked Turns 73 | . . . . . . . . . . . 73 Heaviest Build 60 | 14 29 35 38 39 39 39 56 56 60 60 53 Greatest Support 63 | 40 40 40 40 43 43 43 63 60 60 60 50 Greatest Overweight (x) 2 | . . . . . . . 1 2 2 1 2 Average Overweight (x) . | . . . . . . . . . . . . Largest Inventory Capacity 15 | 8 15 15 15 15 15 15 15 15 15 15 15 Average Capacity 14 | 7 10 15 15 15 15 15 15 15 15 15 12 Most Carried 15 | 5 6 13 13 11 12 12 15 15 15 14 10 Average Carried 11 | 2 5 9 11 11 11 12 13 14 14 12 7 Final Capacity 15 | 8 15 15 15 15 15 15 15 15 15 15 5 Final Carried 15 | 4 6 13 11 11 12 12 15 15 15 9 5 Class Distribution -------------------- 46% | Mutant 25% | Tank 7% | Hacker-Tank 6% | Skirmisher 4% | Hacker-Mutant 4% | Hacker-Skirmisher Dominant Class ---------------- Mutant | -10/Materials Mutant | -10/Mines Mutant | -9/Materials Mutant | -9/Mines Mutant | -9/Exiles Tank | -8/Mines Tank | -8/Materials Tank | -8/Garrison Tank | -8/Materials Hacker-Tank | -7/Factory Hacker-Mutant | -7/Storage Resources | -11 -10 -10 -9 -9 -9 -8 -8 -8 -8 -7 -7 ----------- Run | Yrd Mat Min Mat Min Exi Min Mat Gar Mat Fac Sto Matter Collected 2812 | 280 . 84 150 40 . 27 544 438 515 543 191 Remotely . | . . . . . . . . . . . . Salvage Created 3180 | 28 10 . 254 . . 17 710 389 951 679 142 Parts 185 | 5 3 . 19 . . . 40 26 56 30 6 Haulers Intercepted . | . . . . . . . . . . . . Recyclers Shooed 4 | 2 . . . . . . . . 2 . . Parts Field Recycled . | . . . . . . . . . . . . Retrieved Matter . | . . . . . . . . . . . . Parts Self-Destructed . | . . . . . . . . . . . . Prevented . | . . . . . . . . . . . . Kills | -11 -10 -10 -9 -9 -9 -8 -8 -8 -8 -7 -7 ------- Run | Yrd Mat Min Mat Min Exi Min Mat Gar Mat Fac Sto Combat Hostiles Destroyed 82 | . . . 8 . . 1 19 14 17 20 3 Melee 2 | . . . . . . . . . . 2 . Guns 37 | . . . 8 . . 1 10 4 11 2 1 Cannons 25 | . . . . . . . 8 8 . 8 1 AOE 13 | . . . . . . . 1 2 5 5 . Classes Destroyed 13 | 1 1 . 3 . . . 3 1 2 1 1 Worker 3 | . . . . . . . . . 1 2 . Builder 4 | . . . . . . . 1 . 2 1 . Tunneler 2 | 2 . . . . . . . . . . . Recycler 3 | . . . . . . . . . 1 2 . Operator 1 | . . . . . . . 1 . . . . Watcher 5 | . 1 . 1 . . . . . 3 . . Swarmer 17 | . . . 4 . . 1 . 3 3 6 . Grunt 45 | . . . 2 . . . 15 8 9 10 1 Duelist 2 | . . . . . . . . 1 . . 1 Protector 1 | . . . . . . . . . . . 1 Sentry 12 | . . . 2 . . . 3 1 4 2 . Hunter 3 | . . . . . . . 1 1 1 . . Programmer 2 | . . . . . . . . . . 2 . Best Kill Streak 6 | 1 1 . 4 . . 1 5 6 4 6 3 Combat Bots Only 6 | . . . 4 . . 1 5 6 3 5 3 Max Kills in Single Turn 3 | 1 1 . 1 . . 1 2 2 2 3 1 Gunslinging 1 | . . . . . . . 1 . . . . Exploded 3 | . . . . . . . 1 1 2 3 . Melee 1 | . . . . . . . . . . 1 . Uniques/NPCs Destroyed . | . . . . . . . . . . . . Combat | -11 -10 -10 -9 -9 -9 -8 -8 -8 -8 -7 -7 -------- Run | Yrd Mat Min Mat Min Exi Min Mat Gar Mat Fac Sto Hostile Shots Fired 629 | . . 5 54 . . 4 91 69 61 250 95 Missed 211 | . . 1 16 . . 2 29 18 19 82 44 Damage Taken 6210 | . . 67 361 . . 18 987 773 649 2474 881 Core 1114 | . . . 93 . . . 109 133 66 256 457 Absorbed by Shields . | . . . . . . . . . . . . Redirected to Shielding 31 | . . . . . . . 8 23 . . . Regen/Repaired (Parts) 89 | . . . . . . . . . 19 70 . Core Remaining (%) 80 | 100 . 100 . . . 76 . . 44 . . Volleys Fired 221 | 9 9 4 23 . . 1 44 38 48 41 4 Largest 3 | 2 2 2 3 . . 3 3 3 3 3 2 Hottest 207 | 40 40 40 126 . . 109 132 207 207 165 113 Shots Fired 510 | 18 18 8 47 . . 3 122 69 124 93 8 Gun 324 | 18 18 8 47 . . 3 76 17 117 16 4 Cannon 162 | . . . . . . . 44 45 . 69 4 Launcher 24 | . . . . . . . 2 7 7 8 . Special . | . . . . . . . . . . . . Kinetic 272 | 18 18 8 2 . . 2 106 45 . 69 4 Thermal 214 | . . . 45 . . 1 14 17 117 16 4 Explosive 24 | . . . . . . . 2 7 7 8 . Electromagnetic . | . . . . . . . . . . . . Robot Hit Streak 10 | 3 5 4 5 . . 5 8 6 10 7 8 Robot Miss Streak 9 | 4 3 1 3 . . 1 8 9 5 4 . Penetration Max . | . . . . . . . . . . . . Secondary Targets 5 | . . . 1 . . . 4 . . . . Max Gunslinging Chain 1 | . . . 1 . . . 1 . . . . Shots Hit Robots 313 | 10 9 7 27 . 4 2 85 45 61 53 10 Core Hits 207 | 2 4 2 11 . . 1 67 48 40 28 4 Critical Kills 1 | . . . . . . . . . . 1 . Critical Parts Destroyed 4 | . . . . . . . 1 . . 2 1 Critical Strikes 14 | . . . 1 . . . 1 2 3 6 1 Burn 6 | . . . 1 . . . . 1 3 1 . Destroy 1 | . . . . . . . 1 . . . . Blast 3 | . . . . . . . . 1 . 2 . Smash 4 | . . . . . . . . . . 3 1 Melee Attacks 37 | . . . 2 . 10 . 2 . 2 16 5 Impact 33 | . . . 2 . 6 . 2 . 2 16 5 Slashing . | . . . . . . . . . . . . Piercing . | . . . . . . . . . . . . Sneak Attacks 5 | . . . 1 . 4 . . . . . . Combat Hostiles 4 | . . . . . 4 . . . . . . Follow-up Attacks . | . . . . . . . . . . . . Damage Inflicted 8494 | 108 98 86 611 . . 25 1704 1066 1618 2801 377 Guns 3209 | 108 98 68 466 . . 25 802 137 1252 152 101 Cannons 2388 | . . . . . . . 583 562 . 1158 85 Explosions 1923 | . . . . . . . 215 367 348 993 . Melee 862 | . . . 145 . . . 104 . . 483 130 Ramming 112 | . . 18 . . . . . . 18 15 61 Kinetic 3378 | 108 98 68 40 . . 9 1250 562 . 1158 85 Thermal 2219 | . . . 426 . . 16 135 137 1252 152 101 Explosive 1923 | . . . . . . . 215 367 348 993 . Electromagnetic . | . . . . . . . . . . . . Impact 862 | . . . 145 . . . 104 . . 483 130 Slashing . | . . . . . . . . . . . . Piercing . | . . . . . . . . . . . . Highest Corruption 13 | . . . . . . . . . . 3 13 Average Corruption 3 | . . . . . . . . . . 2 4 Corruption Purged 1 | . . . . . . . . . . 1 . Corruption Blocked . | . . . . . . . . . . . . Effects 14 | . . . . . . . . . . 7 7 Message Errors 1 | . . . . . . . . . . . 1 Matter Fused 3 | . . . . . . . . . . 1 2 Heat Flow Errors 4 | . . . . . . . . . . 3 1 Energy Discharges 1 | . . . . . . . . . . 1 . Data Loss (minor) 1 | . . . . . . . . . . 1 . Data Loss (major) 1 | . . . . . . . . . . . 1 Alerts 2 | . . . . . . . . . . . 2 Weapon Failures 1 | . . . . . . . . . . 1 . Overload Shots . | . . . . . . . . . . . . Overflow Damage 523 | . . . . . . . 9 4 . 490 20 Projectiles 85 | . . . . . . . . . . 85 . Explosions 195 | . . . . . . . 9 4 . 182 . Melee 243 | . . . . . . . . . . 223 20 Knockbacks 42 | . . 1 . . . . 9 17 . 14 1 Impact 5 | . . 1 . . . . 1 . . 3 . Kinetic 37 | . . . . . . . 8 17 . 11 1 Secondary . | . . . . . . . . . . . . Self-Inflicted Damage 263 | . . . . . . . . . . 225 38 Shots 5 | . . . . . . . . . . 5 . Rammed 12 | . . 6 . . . . . . . . 6 Targets Rammed 21 | . . 6 . . . . . . 3 4 8 Kicked 9 | . . . . . . . . . 3 4 2 Crushed . | . . . . . . . . . . . . Highest Temperature 458 | . . 6 405 . . 48 278 382 458 276 144 Average Temperature 132 | . . 6 128 . . 26 109 190 169 59 74 Received Heat Transfer 2301 | . . 24 57 . . . 585 378 288 693 276 Effects 23 | . . . 4 . . . 2 9 8 . . Shutdowns 7 | . . . . . . . . 3 4 . . Energy Bleed 1 | . . . 1 . . . . . . . . Interference 10 | . . . . . . . 2 5 3 . . Matter Decay 1 | . . . . . . . . 1 . . . Short Circuit 1 | . . . . . . . . . 1 . . Damage (major) 3 | . . . 3 . . . . . . . . Siege Activations . | . . . . . . . . . . . . Robots Corrupted . | . . . . . . . . . . . . Combat Hostiles . | . . . . . . . . . . . . Parts Fried 5 | . . . . . . . . . . 2 3 Impact Corruptions 6 | . . . . . . . . . . 5 1 Robots Melted 1 | . . . . . . . . . 1 . . Combat Hostiles 1 | . . . . . . . . . 1 . . Parts Melted 9 | . . . 3 . . . . 1 5 . . Heat Transferred 4828 | . . . 999 . . 37 296 370 2664 370 92 Parts Sabotaged . | . . . . . . . . . . . . Parts Stolen . | . . . . . . . . . . . . Parts Stripped . | . . . . . . . . . . . . Power Chain Reactions . | . . . . . . . . . . . . Alert | -11 -10 -10 -9 -9 -9 -8 -8 -8 -8 -7 -7 ------- Run | Yrd Mat Min Mat Min Exi Min Mat Gar Mat Fac Sto Peak Influence 695 | 10 28 10 244 34 . 83 347 695 554 610 408 Initial 338 | . 6 10 . 34 . . 31 225 338 252 268 Average 233 | 4 12 6 105 34 . 45 187 495 311 418 302 Maximum Alert Level 2 | . . . 1 . . . 1 2 2 2 2 Low Security (%) 43 | 100 100 100 72 100 . 100 44 . 14 . . Level 1 33 | . . . 27 . . . 55 31 55 43 99 Level 2 22 | . . . . . . . . 68 29 56 . Level 3 . | . . . . . . . . . . . . Level 4 . | . . . . . . . . . . . . Level 5 . | . . . . . . . . . . . . High Security . | . . . . . . . . . . . . Max Security . | . . . . . . . . . . . . Squads Dispatched 19 | . 1 1 1 . . . 4 . 4 6 2 Investigation 5 | . . 1 1 . . . 1 . 1 1 . Extermination 2 | . . . . . . . . . . 2 . Reinforcement 8 | . 1 . . . . . 1 . 3 3 . Assault 2 | . . . . . . . . . . . 2 Garrison 2 | . . . . . . . 2 . . . . Intercept . | . . . . . . . . . . . . Searches Triggered . | . . . . . . . . . . . . Construction Impeded 2 | . . . . . . . . . . 2 . Haulers Reinforced 1 | . . . . . . . . . . 1 . Active Scanning Responses . | . . . . . . . . . . . . Cargo Convoy Interrupts . | . . . . . . . . . . . . Stealth | -11 -10 -10 -9 -9 -9 -8 -8 -8 -8 -7 -7 --------- Run | Yrd Mat Min Mat Min Exi Min Mat Gar Mat Fac Sto Distress Signals 6 | . . . 1 . . . 3 . 1 . 1 Communications Jammed . | . . . . . . . . . . . . Distress Signals . | . . . . . . . . . . . . Times Spotted 144 | . 6 1 19 . . 3 25 14 26 28 22 Peak Tracking Total 14 | . 4 1 6 . . 3 6 6 4 6 14 Tactical Retreats 7 | . . . . . . . 2 . 1 2 2 Traps | -11 -10 -10 -9 -9 -9 -8 -8 -8 -8 -7 -7 ------- Run | Yrd Mat Min Mat Min Exi Min Mat Gar Mat Fac Sto Traps Triggered 3 | . . . . . . . . 2 1 . . Indirectly . | . . . . . . . . . . . . Trap Hack Attempts . | . . . . . . . . . . . . Triggered . | . . . . . . . . . . . . Disarmed . | . . . . . . . . . . . . Reprogrammed . | . . . . . . . . . . . . Reused . | . . . . . . . . . . . . Traps Extracted . | . . . . . . . . . . . . Installed . | . . . . . . . . . . . . Triggered . | . . . . . . . . . . . . Machines | -11 -10 -10 -9 -9 -9 -8 -8 -8 -8 -7 -7 ---------- Run | Yrd Mat Min Mat Min Exi Min Mat Gar Mat Fac Sto Machines Disabled 14 | . . . 1 . . . . 2 4 6 1 Max in Single Turn 4 | . . . 1 . . . . 1 1 4 1 Garrison Relay 2 | . . . . . . . . 2 . . . Machines Repaired . | . . . . . . . . . . . . Machines Dismantled . | . . . . . . . . . . . . Machines Sabotaged . | . . . . . . . . . . . . Overloaded Fab Kills . | . . . . . . . . . . . . Hacking | -11 -10 -10 -9 -9 -9 -8 -8 -8 -8 -7 -7 --------- Run | Yrd Mat Min Mat Min Exi Min Mat Gar Mat Fac Sto Machines Accessed 31 | . 1 2 6 . 2 . 2 2 9 4 3 Terminals 19 | . 1 . 5 . . . 1 2 7 . 3 Fabricators 1 | . . . . . . . . . . 1 . Repair Stations 2 | . . . . . . . . . 1 1 . Recycling Units . | . . . . . . . . . . . . Scanalyzers 4 | . . . 1 . . . . . 1 2 . Garrison Access 1 | . . . . . . . 1 . . . . Total Hacks 82 | . 2 2 19 . 2 . 4 4 22 22 5 Successful 49 | . 1 2 10 . 2 . 2 1 11 17 3 Failed 33 | . 1 . 9 . . . 2 3 11 5 2 Catastrophic 6 | . . . 2 . . . . 1 3 . . Database Lockouts . | . . . . . . . . . . . . Manual 23 | . 1 . 5 . . . 2 . 12 . 3 Terminals 45 | . 2 . 14 . . . 2 4 18 . 5 Fabricators 3 | . . . . . . . . . . 3 . Repair Stations 4 | . . . . . . . . . 2 2 . Recycling Units . | . . . . . . . . . . . . Scanalyzers 24 | . . . 5 . . . . . 2 17 . Garrison Access 2 | . . . . . . . 2 . . . . Terminal Hacks 12 | . . 2 2 . 2 . . 1 3 . 2 Record 2 | . . . . . 2 . . . . . . Robot Analysis 1 | . . . 1 . . . . . . . . Open Door 4 | . . 2 . . . . . . . . 2 Level Access Points 1 | . . . . . . . . . 1 . . Unreport Threat 1 | . . . . . . . . . 1 . . Locate Traps 1 | . . . . . . . . . 1 . . Registered Prototypes 1 | . . . 1 . . . . . . . . Security Stations 1 | . . . . . . . . 1 . . . Fabricator Hacks . | . . . . . . . . . . . . Repair Station Hacks 4 | . . . . . . . . . 2 2 . Scan Component 2 | . . . . . . . . . 1 1 . Repair 2 | . . . . . . . . . 1 1 . Recycling Unit Hacks . | . . . . . . . . . . . . Scanalyzer 22 | . . . 5 . . . . . 2 15 . Insert Component 10 | . . . 2 . . . . . 1 7 . Analyze 12 | . . . 3 . . . . . 1 8 . Garrison Access Hacks 1 | . . . . . . . 1 . . . . Unlock Access 1 | . . . . . . . 1 . . . . Unauthorized Hacks 10 | . 1 . 3 . . . 1 . 4 . 1 Terminals 10 | . 1 . 3 . . . 1 . 4 . 1 Botnet 10 | . 1 . 3 . . . 1 . 4 . 1 Fabricators . | . . . . . . . . . . . . Repair Stations . | . . . . . . . . . . . . Recycling Units . | . . . . . . . . . . . . Scanalyzers . | . . . . . . . . . . . . Garrison Access . | . . . . . . . . . . . . Data Cores Recovered . | . . . . . . . . . . . . Used . | . . . . . . . . . . . . Hacking Detections 23 | . 1 . 5 . . . 2 2 8 4 1 Full Trace Events 5 | . . . 2 . . . . 1 1 1 . Feedback Events . | . . . . . . . . . . . . Feedback Blocked . | . . . . . . . . . . . . Robot Schematics Acquired . | . . . . . . . . . . . . Robots Built . | . . . . . . . . . . . . Authchips . | . . . . . . . . . . . . Time . | . . . . . . . . . . . . Total Robot Build Rating . | . . . . . . . . . . . . Part Schematics Acquired 10 | . . . 2 . . . . . 1 7 . Parts Built . | . . . . . . . . . . . . Authchips . | . . . . . . . . . . . . Time . | . . . . . . . . . . . . Total Part Build Rating . | . . . . . . . . . . . . Parts Repaired 2 | . . . . . . . . . 1 1 . Time 48 | . . . . . . . . . 26 22 . Parts Recycled . | . . . . . . . . . . . . Recycled Matter . | . . . . . . . . . . . . Retrieved Matter . | . . . . . . . . . . . . Retrieved Components . | . . . . . . . . . . . . Parts Scanalyzed 10 | . . . 2 . . . . . 1 7 . Part Schematics Acquired 10 | . . . 2 . . . . . 1 7 . Parts Damaged 2 | . . . . . . . . . . 2 . Bothacking | -11 -10 -10 -9 -9 -9 -8 -8 -8 -8 -7 -7 ------------ Run | Yrd Mat Min Mat Min Exi Min Mat Gar Mat Fac Sto Used RIF Installer 1 | . . . . . . . . 1 . . . Robots Hacked . | . . . . . . . . . . . . Non-combat . | . . . . . . . . . . . . Combat . | . . . . . . . . . . . . Robot Hacks Applied . | . . . . . . . . . . . . Relay Couplers Released 9 | . . . . . . . . 9 . . . Machine Destruction 9 | . . . . . . . . 9 . . . Fabnet Peak Effective % . | . . . . . . . . . . . . Robots Rewired 4 | . . . . . 4 . . . . . . Allies Hacked . | . . . . . . . . . . . . Hacks Repelled . | . . . . . . . . . . . . Allies | -11 -10 -10 -9 -9 -9 -8 -8 -8 -8 -7 -7 -------- Run | Yrd Mat Min Mat Min Exi Min Mat Gar Mat Fac Sto Total Allies 6 | . . . . . 4 . . . . . 2 Largest Group 4 | . . . . . 4 4 3 . . . 2 Highest-Rated Group 62 | . . . . . 45 45 37 . . . 62 Highest-Rated Ally 31 | . . . . . 21 21 21 . . . 31 Total Orders 1 | . . . . . . . . . . . 1 EXPLORE 1 | . . . . . . . . . . . 1 Ally Attacks 28 | . . . . . . 6 3 . . . 19 Total Damage 489 | . . . . . . 50 85 . . . 354 Kills 5 | . . . . . . 3 1 . . . 1 Allies Corrupted . | . . . . . . . . . . . . Allies Melted . | . . . . . . . . . . . . Intel | -11 -10 -10 -9 -9 -9 -8 -8 -8 -8 -7 -7 ------- Run | Yrd Mat Min Mat Min Exi Min Mat Gar Mat Fac Sto Robot Analysis Total 1 | . . . 1 . . . . . . . . Derelict Logs Recovered 4 | . . 2 . 2 . . . . . . . Drone Launches 1 | . . . . . . . . . . . 1 Drone Recoveries . | . . . . . . . . . . . . Exploration | -11 -10 -10 -9 -9 -9 -8 -8 -8 -8 -7 -7 ------------- Run | Yrd Mat Min Mat Min Exi Min Mat Gar Mat Fac Sto Turns Passed 6794 | 143 398 633 485 326 1017 213 592 672 1124 945 246 Spaces Moved 3602 | 64 228 361 229 195 593 128 208 294 621 487 194 Core 126 | 3 . . . . . . . . . . 123 Treads 2134 | 61 228 361 229 195 593 128 208 131 . . . Legs 1342 | . . . . . . . . 163 621 487 71 Wheels . | . . . . . . . . . . . . Hover . | . . . . . . . . . . . . Flight . | . . . . . . . . . . . . Fastest Speed 50 | 50 160 160 165 165 165 165 160 160 126 126 50 Average Speed 155 | 154 160 163 165 165 165 165 180 183 143 144 78 Slowest Speed 320 | 160 160 165 165 165 165 165 245 320 260 196 270 Overloaded Moves . | . . . . . . . . . . . . Propulsion Burnouts . | . . . . . . . . . . . . Robots Hopped . | . . . . . . . . . . . . Cave-ins Triggered . | . . . . . . . . . . . . Exploration Rate (%) 41 | 5 33 79 28 68 89 28 25 44 57 12 32 Regions Visited 11 Branch Regions 5 Pre-discovered Areas 2 | . . 1 . . 1 . . . . . . Known Exits Taken 3 | . . . . . . . 1 . 1 1 . Unknown Exits Taken 7 | 1 1 1 1 1 1 1 . . . . . Scrap Searched 5 | . . 2 . 3 . . . . . . . Spaces Dug 3 | . . . 1 . . . . . 2 . . Terrain Destroyed 172 | . . . 1 . . . 11 40 46 73 1 Melee 3 | . . . 1 . . . . . 2 . . Projectile 13 | . . . . . . . . . . 12 1 AOE 156 | . . . . . . . 11 40 44 61 . Terrain Rammed 3 | . . . . . . . . . . . 3 Walls Destroyed . | . . . . . . . . . . . . Machines Disabled . | . . . . . . . . . . . . Actions | -11 -10 -10 -9 -9 -9 -8 -8 -8 -8 -7 -7 --------- Run | Yrd Mat Min Mat Min Exi Min Mat Gar Mat Fac Sto Total 4286 | 90 246 394 286 198 620 128 325 365 749 617 268 Wait 151 | 2 2 8 13 . . . 20 4 22 34 46 Move 3591 | 63 227 360 228 194 592 127 207 293 620 486 194 Hop . | . . . . . . . . . . . . Pick Up 50 | 7 4 5 1 . 1 . 9 2 12 6 3 Fast Attach 56 | 6 . 5 3 1 . . 11 7 13 8 2 Attach 19 | 1 . . 2 . . . 4 1 . 9 2 Detach 6 | . . 3 1 . . . . 2 . . . Swap 41 | . 1 . 7 2 2 . 10 6 7 5 1 Drop 70 | 2 3 3 6 1 . . 18 7 22 8 . Fire 221 | 9 9 4 23 . . 1 44 38 48 41 4 Melee 37 | . . . 2 . 10 . 2 . 2 16 5 Ram 9 | . . . . . . . . . . . 9 Kick 9 | . . . . . . . . . 3 4 2 Crush 6 | . . 6 . . . . . . . . . Escape Stasis 5 | . . . . . . . . 5 . . . Rewire 15 | . . . . . 15 . . . . . . Trap . | . . . . . . . . . . . . Miscellaneous . | . . . . . . . . . . . . Route ------- -11/Scrapyard -10/Materials -10/Mines (discovered 2 exits: *Mat x2) -9/Materials -9/Mines (discovered 2 exits: *Mat / *Exi) -9/Exiles (discovered 2 exits: [*Min x2]) -8/Mines -8/Materials (discovered 2 exits: *Fac / Gar) -8/Garrison -8/Materials (discovered 3 exits: *Fac x3) -7/Factory -7/Storage History --------- Turn | Location | Event 11 | -11/Scrapyard | Discovered new exit (range 15) 144 | -11/Scrapyard | Entered Materials 308 | -10/Materials | Build established: Mutant 391 | -10/Materials | Discovered new exit (range 11) 542 | -10/Materials | Entered Mines 682 | -10/Mines | Learned location of Zion (-6) 734 | -10/Mines | Discovered new exit (range 6) 748 | -10/Mines | Met a Derelict shopkeep closing up shop 882 | -10/Mines | Met a Derelict who couldn't figure out how to use a Trap Extractor 1162 | -10/Mines | Discovered new exit (range 7) 1175 | -10/Mines | Entered Materials 1175 | -9/Materials | Evolved 2 slots: Utility x1, Weapon x1 1562 | -9/Materials | Discovered new exit (range 11) 1660 | -9/Materials | Entered Mines 1791 | -9/Mines | Discovered new exit (range 14) 1825 | -9/Mines | Learned Materials security intel 1977 | -9/Mines | Deemed a non-threat by the Exiles lab entrance 1979 | -9/Mines | Discovered new exit (range 5) 1986 | -9/Mines | Entered Exiles 1986 | -9/Exiles | Found Exiles lab destroyed 2392 | -9/Exiles | Discovered new exit (range 14) 2985 | -9/Exiles | Discovered new exit (range 11) 3003 | -9/Exiles | Entered Mines 3003 | -8/Mines | Accompanied by 4 allies 3058 | -8/Mines | Discovered new exit (range 11) 3216 | -8/Mines | Entered Materials 3216 | -8/Materials | Accompanied by 3 allies 3216 | -8/Materials | Evolved 2 slots: Power x1, Propulsion x1 3299 | -8/Materials | Lost 3 allies 3684 | -8/Materials | Garrison activated, responded to threat 3752 | -8/Materials | Discovered new exit (range 16) 3766 | -8/Materials | Identified exit to Garrison 3808 | -8/Materials | Entered Garrison 3862 | -8/Garrison | Triggered checkpoint 3882 | -8/Garrison | Learned Materials security intel 3895 | -8/Garrison | Garrison Relay disabled 3960 | -8/Garrison | Triggered checkpoint 3980 | -8/Garrison | Build established: Tank 4103 | -8/Garrison | Lost 3 parts (2n1u) 4360 | -8/Garrison | Installed Relay Interface Framework 4402 | -8/Garrison | Garrison Relay disabled 4463 | -8/Garrison | Discovered new exit (range 10) 4480 | -8/Garrison | Entered Materials 4838 | -8/Materials | Identified exit to Factory 4882 | -8/Materials | Repaired Structural Scanner 5039 | -8/Materials | Core integrity fell below 50% 5604 | -8/Materials | Entered Factory 5604 | -7/Factory | Evolved 2 slots: Utility x2 5605 | -7/Factory | Identified exit to Storage 5665 | -7/Factory | Repaired Imp. Titanium Leg 6066 | -7/Factory | Build established: Hacker-Skirmisher 6113 | -7/Factory | Lost 3 parts (1p1n1w) 6382 | -7/Factory | Build established: Hacker-Tank 6460 | -7/Factory | Lost 3 parts (1p2u) 6549 | -7/Factory | Entered Storage 6560 | -7/Storage | Lost 4 parts (1n1u2w) 6615 | -7/Storage | Met a pair of Derelict thieves 6709 | -7/Storage | Build established: Hacker-Mutant 6722 | -7/Storage | Released all parts (7) 6726 | -7/Storage | Core integrity fell below 50% 6753 | -7/Storage | Lost 9 parts (3n6u) 6777 | -7/Storage | System corruption reached 10% 6788 | -7/Storage | Core integrity fell below 20% 6795 | -7/Storage | Destroyed by G-47 Trooper with Particle Gun Last Messages --------------- 06775_ Slammed into Storage Shell. 06775_ Destabilizing: System corrupted (+2). 06776_ Slammed into Storage Shell. 06776_ Destabilizing: System corrupted (+2). 06776_ Destabilizing: System corrupted (+1). 06777_ Slammed into Storage Shell. 06777_ Destabilizing: System corrupted (+2). 06781_ K-01 Serf collects debris. 06783_ M-28 Smith repairs L-41 Fighter. 06784_ K-01 Serf collects debris. 06784_ Slammed into K-01 Serf. 06785_ System corrupted: IFF burst signal emitted. 06785_ Slammed into K-01 Serf. 06787_ Critical hit (Burn: +37). 06787_ M-28 Smith repairs Carbon-fiber Leg. 06790_ W-25 Informer sends out distress signal. 06791_ Slammed into W-25 Informer. 06792_ U-05 Engineer lays Concrete. 06794_ R-06 Scavenger destroyed. Map ----- +----------------------------------------------------+ | | | | | | | | | | | | | | | | | | | | | | | | | | | | | | | | | | | ????????????????????????##############???????????? | | ?????????#########??????# ! #???????????? | | ?###?????#!!!!#[##??????# #???????????? | | ?# #?????#[%*%/*!#??????# ! ############# | | ## #?????#!*!%#%%#??????#/ /%% + | | #T #?????######%%#??????# # # " | | ##+############+###############+##+### # " | | % g # " | | @gk =w g + " | | g *% %g= # | | #+#########+##########Ya ##############[= # | | #???## #?????# Y#??????????# # # | | """ #???#T #?????# #??????????# # =% #### | | """ #??###" "##?????# #????????######## # | | """ #??# #?????# #????????# # #! | | """ #??#!! #?????# #????????# # + | | """ #??# ! !!#?????# #????????# # # | | #??#! ! !#?????# #????????# # #### | | #??########?????# #????????# /% | | ######???????????????# #????????# # ####### | | ?????????????????????# #????????######## #?????? | | ?????????????????????# #??????????????##/#####?? | | ?????????????????????# #??????????????# #?? | | ?????????????????????# #?????????????## """ ### | | ?????????????????????# #?????????????# """ + | | ?????????????????????# +?????????????## """ #+# | | ?????????????????????? ???????????????# # | | ?????????????????????? ???????????????# # | | ????????????????????????????????????????######## | | ???????????????????????????????????????????????# | | ???????????????????????????????????????????????# | | ???????????????????????????????????????????????# | | ???????????????????????????????????????????????### | +----------------------------------------------------+ Best States ------------- Heat Dissipation 61 Energy Generation 23 Energy Capacity 415 Matter Stores 300 Matter Capacity 300 Sight Range 16 Terrain Scan Range 16 Terrain Scan Density 10 Armor Coverage 225 Resistance: TH 10 Weapon Shielding 66 Evasion (%) 55 Recoil Reduction 3 Offensive Hacking 20 Defensive Hacking 10 Item Schematics ----------------- Structural Scanner | -9/Materials | Scanalyzed Imp. Terrain Scanner | -9/Materials | Scanalyzed Datajack | -8/Materials | Scanalyzed Hrd. Medium Armor Plating | -7/Factory | Scanalyzed ECM Suite | -7/Factory | Scanalyzed Imp. Signal Interpreter | -7/Factory | Scanalyzed Imp. Titanium Leg | -7/Factory | Scanalyzed Mak. System Restoration Module | -7/Factory | Scanalyzed Hacking Suite | -7/Factory | Scanalyzed Nuclear Core | -7/Factory | Scanalyzed Robot Schematics ------------------ None Fabricated ------------ Nothing Alien Tech Used ----------------- None Achievements -------------- None Challenges ------------ None Game ------ Seed VariableDamperScanner Manual? 0 Play Time 01:19:40 Cumulative 83.4 hours Start 2024.05.06 @ 14:36:29 End 2024.05.06 @ 16:17:59 Sessions 1 Manual Loads 0 Difficulty Rogue Special Mode None Game No. 61 Rogue 22 Adventurer 32 Explorer 7 Win Type - Total 0 Types 0/0/0/0/0/0/0/0/0 Lore% 24 Gallery% 55 Achievement% 41 Wizard Run 0 Options --------- Layout 1 ASCII 0 Keyboard 0 Movement Mouse Keybinds 0 Fullscreen 1 Font 16/SmallcapsGlow Map View 50x40 Zoom Use 3% Tactical HUD 1 Map Filters NONE Filters NONE Steam SD RUN: f67e0778-1d36-4601-87c3-88595f91353f